fUST/lending_fUST_20260224
["ID","MTS","AMOUNT","RATE_DAILY","PERIOD"]
[406520118,1771903825783,-703.27695894,0.00010949,2]
[406520166,1771903831942,-574.0,0.00010949,2]
[406520168,1771903831951,-618.18933296,0.0001106,2]
[406520170,1771903831962,-4381.81066704,0.0001106,2]
[406520171,1771903831971,-5000.0,0.00011172,2]
[406520173,1771903831981,-9126.50797139,0.00011285,2]
[406520175,1771903831990,-5613.04515481,0.000125,2]
[406520177,1771903832001,-342.29374369,0.000125,2]
[406520186,1771903832088,-28.36433251,0.000125,2]
[406520188,1771903838014,-4590.73771589,0.0001084,2]
[406520189,1771903838026,-409.26228411,0.0001084,2]
[406520190,1771903838035,-25.73771589,0.00012499,2]
[406520264,1771903843217,-412.33745134,0.00010732,2]
[406520265,1771903843228,-353.45,0.00010732,2]
[406520274,1771903843763,-1297.79143957,0.00010732,2]
[406520275,1771903843773,-474.26228411,0.00012499,2]
[406520276,1771903843791,-200.05298798,0.00012499,2]
[406520277,1771903843805,-299.94701202,0.00012499,2]
[406520278,1771903843814,-500.0,0.00012499,2]
[406520279,1771903843826,-500.0,0.00012499,2]
[406520280,1771903843838,-500.0,0.00012499,2]
[406520281,1771903843848,-564.76175955,0.00012499,2]
[406520282,1771903843858,-455.69754191,0.00012499,2]
[406520283,1771903843867,-500.0,0.00012499,2]
[406520284,1771903843879,-500.0,0.00012499,2]
[406520285,1771903843889,-500.0,0.00012499,2]
[406520286,1771903843898,-204.78335338,0.00012499,2]
[406520287,1771903843908,-4985.28528973,0.000125,2]
[406520288,1771903843919,-489.52504341,0.00013273,2]
[406520289,1771903843935,-10.47495659,0.00013273,2]
[406520290,1771903843945,-214.0554315,0.00013273,2]
[406520291,1771903843954,-500.0,0.00013273,2]
[406520292,1771903843965,-500.0,0.00013273,2]
[406520293,1771903843974,-526.31961191,0.00013273,2]
[406520302,1771903846051,-33.74636016,0.00013273,2]
[406520303,1771903846060,-500.0,0.00013273,2]
[406520304,1771903846069,-511.86275612,0.00013273,2]
[406520305,1771903846079,-5078.6662544,0.00013699,2]
[406520306,1771903846089,-500.0,0.00013699,2]
[406520307,1771903846098,-500.0,0.00013699,2]
[406520309,1771903846107,-167.09381288,0.00013699,2]
[406520311,1771903846116,-500.0,0.00013699,2]
[406520312,1771903846124,-551.7186439,0.00013821,2]
[406520313,1771903846134,-631.31120589,0.00013821,2]
[406520314,1771903846143,-1000.0,0.00013821,2]
[406520315,1771903846152,-1000.0,0.00013821,2]
[406520316,1771903846161,-1000.0,0.00014247,2]
[406520317,1771903846170,-1000.0,0.00014247,2]
[406520318,1771903846181,-537.49838845,0.00014247,2]
[406520319,1771903846190,-838.66764809,0.00014368,2]
[406520322,1771903874063,-732.43028706,0.00014225,2]
[406520329,1771904005689,-505.9257715,0.0001224,2]
[406520330,1771904005712,-239.62893399,0.00012295,2]
[406520331,1771904013810,239.62893399,0.00012295,2]
[406520332,1771904103135,9014.81636052,0.000123,2]
[406520335,1771904279695,215.76,9.491e-05,2]
[406520341,1771904435426,5000.0,0.00012,2]
[406520342,1771904458173,4784.24,0.00012,2]
[406520343,1771904472760,9376.718851,0.00042407,10]
[406520345,1771904519989,150.0,0.00042407,11]
[406520346,1771904731089,-550.67411197,0.00012177,2]
[406520347,1771904742493,281.0,0.00042406,120]
[406520353,1771905015111,-194.7,0.000121,2]
[406520354,1771905015135,-591.0,0.000121,2]
[406520355,1771905015163,-5136.41817035,0.000123,2]
[406520373,1771905032098,-842.7757299,0.00013092,2]
[406520374,1771905032108,-11.59529476,0.00013272,2]
[406520375,1771905032119,-288.40470524,0.00013272,2]
[406520376,1771905032128,-500.0,0.00013273,2]
[406520377,1771905032137,-107.93108634,0.00013273,2]
[406520407,1771905038282,-1052.49164465,0.0001314,2]
[406520414,1771905038337,-943.065,0.0001314,2]
[406520425,1771905038422,-1805.4195762,0.0001314,2]
[406520428,1771905038436,-1199.02377915,0.0001314,2]
[406520430,1771905038446,-66.04751941,0.00013273,2]
[406520432,1771905038456,-500.0,0.00013273,2]
[406520434,1771905038465,-567.38717322,0.00013273,2]
[406520436,1771905038475,-300.0,0.00013698,2]
[406520438,1771905038484,-501.83965359,0.00013699,2]
[406520440,1771905038494,-515.10493437,0.00013699,2]
[406520442,1771905038503,-500.0,0.00013699,2]
[406520445,1771905038520,-504.92646284,0.00013699,2]
[406520447,1771905038532,-5.79858572,0.00013699,2]
[406520449,1771905038548,-238.90697397,0.00013699,2]
[406520451,1771905038558,-287.3116462,0.00013699,2]
[406520454,1771905038568,-647.47897576,0.00013699,2]
[406520456,1771905038578,-156.76067845,0.00013699,2]
[406520458,1771905038591,-237.50461948,0.00013699,2]
[406520460,1771905038601,-441.16919547,0.00013699,2]
[406520462,1771905038611,-425.14418968,0.00013699,2]
[406520464,1771905038621,-503.19022225,0.00013699,2]
[406520466,1771905038631,-283.67929033,0.00013699,2]
[406520509,1771905046270,-412.33745134,0.00013562,2]
[406520510,1771905046280,-218.03790339,0.00013699,2]
[406520511,1771905046290,-1117.00736324,0.00013821,2]
[406520512,1771905046299,-1000.0,0.00013821,2]
[406520513,1771905046309,-505.9257715,0.00013824,2]
[406520514,1771905046318,-192.63233987,0.00014247,2]
[406520515,1771905046327,-1500.0,0.00014368,2]
[406520516,1771905046337,-420.0,0.00014383,2]
[406520517,1771905046346,-266.92349201,0.00014644,2]
[406520518,1771905046355,-179.35569909,0.00014644,2]
[406520519,1771905046475,-572.72695943,0.00014644,2]
[406520520,1771905046491,-32022.2327514,0.00014645,2]
[406520521,1771905046500,-1564.87971015,0.00014916,2]
[406520522,1771905046512,-435.12028985,0.00014916,2]
[406520523,1771905046522,-185.216382,0.00015068,2]
[406520524,1771905046531,-587.0,0.00015102,2]
[406520526,1771905046540,-1538.3428367,0.00015163,2]
[406520527,1771905046549,-505.9257715,0.00015409,2]
[406520528,1771905046559,-2500.0,0.00015464,2]
[406520529,1771905046568,-823.0,0.00015857,2]
[406520530,1771905046577,-1324.41020977,0.00016012,2]
[406520531,1771905046586,-341.393,0.00016117,120]
[406520533,1771905046595,-2204.221,0.00016608,2]
[406520535,1771905046605,-636.0,0.00016608,2]
[406520537,1771905046614,-1385.0,0.00016608,2]
[406520538,1771905046623,-151.219,0.00016608,2]
[406520539,1771905046632,-1152.0,0.0001665,2]
[406520540,1771905046641,-505.9257715,0.00016993,2]
[406520541,1771905046651,-347.0,0.00017482,2]
[406520542,1771905046660,-2790.52421276,0.00018,2]
[406520543,1771905046672,-585.75366434,0.00018,2]
[406520574,1771905681463,-2976.53274575,0.00015857,2]
[406520575,1771905681486,-2023.46725425,0.00015857,2]
[406520577,1771905710695,-2976.53274575,0.00015956,2]
[406520582,1771905880494,50260.0,0.00042404,10]
[406520598,1771905937123,-523.87603195,0.00015638,2]
[406520599,1771905990083,-206.79085196,0.00015638,2]
[406520600,1771906031114,-473.67327033,0.00015638,2]
[406520616,1771906041197,10000.0,0.00042404,10]
[406520774,1771906084238,221.53,9.99e-05,2]
[406520775,1771906084519,221.53,9.99e-05,2]
[406520784,1771906151043,219.996003,0.00042404,120]
[406520823,1771906238398,-365.62,0.00015,3]
[406520825,1771906238408,-187.7661,0.00016117,120]
[406520827,1771906238417,-500.0,0.00016117,2]
[406520829,1771906238428,-500.0,0.00016117,2]
[406520831,1771906238437,-500.0,0.00016117,2]
[406520833,1771906238446,-211.41279646,0.00016117,2]
[406520834,1771906238457,-581.23953752,0.00016117,2]
[406520835,1771906238468,-504.1851749,0.00016188,2]
[406520836,1771906238478,-9822.9793345,0.00016197,2]
[406520837,1771906238487,-223.963,0.00016971,2]
[406520838,1771906238496,-207.401,0.00016971,2]
[406520839,1771906238505,-150.572,0.00016971,2]
[406520840,1771906238514,-250.0,0.00016971,2]
[406520841,1771906238524,-3509.50226717,0.00016971,2]
[406520842,1771906238533,-1385.0,0.0001723,2]
[406520843,1771906238542,-727.0,0.0001724,2]
[406520844,1771906238552,-209.475,0.0001724,2]
[406520845,1771906238561,-300.0,0.00017309,2]
[406520846,1771906238570,-300.0,0.00017309,2]
[406520847,1771906238579,-300.0,0.00017309,2]
[406520848,1771906238589,-300.0,0.00017309,2]
[406520849,1771906238599,-300.0,0.00017309,2]
[406520850,1771906238609,-300.0,0.00017309,2]
[406520851,1771906238618,-300.0,0.00017309,2]
[406520852,1771906238628,-300.0,0.00017309,2]
[406520853,1771906238637,-300.0,0.00017309,2]
[406520854,1771906238646,-300.0,0.00017309,2]
[406520855,1771906238658,-300.0,0.00017309,2]
[406520856,1771906238668,-300.0,0.00017309,2]
[406520857,1771906238677,-300.0,0.00017309,2]
[406520858,1771906238687,-300.0,0.00017309,2]
[406520859,1771906238696,-300.0,0.00017309,2]
[406520860,1771906238707,-179.347116,0.00017366,2]
[406520861,1771906238717,-1077.29984448,0.00018,2]
[406520862,1771906238732,-3874.19535901,0.00018,2]
[406520863,1771906238746,-4687.44367412,0.00018,2]
[406520864,1771906238760,-1969.41704307,0.00018,2]
[406521202,1771906243653,-15014.16566939,0.00018,2]
[406521204,1771906243667,-18620.72494558,0.00018,2]
[406521215,1771906243757,-981.22890148,0.00018,2]
[406521217,1771906243767,-189.979,0.00018,2]
[406521219,1771906243776,-240.315818,0.00018029,2]
[406521221,1771906243785,-791.06764496,0.000181,2]
[406521223,1771906243796,-838.58527345,0.000181,2]
[406521718,1771906271768,361.5,0.00042404,10]
[406521806,1771906510830,151.0,0.00042404,120]
[406521807,1771906511393,151.0,0.00042404,120]
[406521808,1771906511994,151.0,0.00042404,120]
[406521809,1771906512587,151.0,0.00042404,120]
[406521810,1771906513211,151.0,0.00042404,120]
[406521811,1771906513842,151.0,0.00042404,120]
[406521812,1771906514541,151.0,0.00042404,120]
[406521813,1771906515139,151.0,0.00042404,120]
[406521814,1771906516070,151.0,0.00042404,120]
[406521815,1771906516721,151.0,0.00042404,120]
[406521816,1771906517359,151.0,0.00042404,120]
[406521817,1771906517998,151.0,0.00042404,120]
[406521818,1771906518645,151.0,0.00042404,120]
[406521819,1771906519269,151.0,0.00042404,120]
[406521820,1771906519914,151.0,0.00042404,120]
[406521821,1771906520609,151.0,0.00042404,120]
[406521822,1771906521304,151.0,0.00042404,120]
[406521823,1771906521962,151.0,0.00042404,120]
[406521824,1771906536281,160.92938932,0.00042404,120]
[406521825,1771906536593,160.92938932,0.00042404,120]
[406521826,1771906536652,229.6570414,0.00042404,120]
[406521827,1771906607220,7318.34,0.00042404,120]
[406521828,1771906635576,306.46186701,0.00042404,16]
[406521829,1771906639264,166.09019526,0.00042404,16]
[406521830,1771906639450,451.76557184,0.00042404,16]
[406521832,1771906641677,200.12385627,0.00042404,16]
[406521833,1771906644415,303.08239665,0.00042404,16]
[406521834,1771906654325,155.05303394,0.00042404,16]
[406521835,1771906660272,271.70703387,0.00042404,120]
[406521836,1771906669795,500.0,0.00042404,120]
[406521837,1771906669914,500.0,0.00042404,120]
[406521838,1771906670170,414.56021907,0.00042404,120]
[406521920,1771906678396,500.0,0.00042404,120]
[406521921,1771906678626,500.0,0.00042404,120]
[406521922,1771906678900,589.3097183,0.00042404,120]
[406521924,1771906683143,500.0,0.00042404,120]
[406521925,1771906683386,426.3330727,0.00042404,120]
[406521926,1771906683709,500.0,0.00042404,120]
[406521927,1771906683971,500.0,0.00042404,120]
[406521928,1771906684237,500.0,0.00042404,120]
[406521929,1771906684477,500.0,0.00042404,120]
[406521930,1771906684709,500.0,0.00042404,120]
[406521931,1771906685015,500.0,0.00042404,120]
[406521932,1771906685247,500.0,0.00042404,120]
[406521933,1771906685478,500.0,0.00042404,120]
[406521934,1771906685707,417.99217903,0.00042404,120]
[406521937,1771906692004,231.51430661,0.00042404,120]
[406521939,1771906694458,205.96815283,0.00042404,120]
[406521940,1771906695245,161.17285784,0.00042404,120]
[406521941,1771906695550,237.71598595,0.00042404,21]
[406521942,1771906698914,172.21223282,0.00042404,120]
[406521943,1771906704207,383.39396545,0.00042404,120]
[406521944,1771906705192,500.0,0.00042404,20]
[406521945,1771906705439,571.77324956,0.00042404,20]
[406521947,1771906729287,9556.94,0.00012,2]
[406521948,1771906729312,10000.0,0.00012,2]
[406521950,1771906747270,500.0,0.00042409,120]
[406521951,1771906747533,198.02406661,0.00042409,120]
[406521952,1771906748192,157.22058768,0.00042409,120]
[406521956,1771906754775,272.00130247,0.00042409,120]
[406521958,1771906769532,156.79017538,0.00042409,120]
[406521959,1771906792574,500.0,0.00042409,120]
[406521960,1771906792846,272.02675612,0.00042409,120]
[406521961,1771906798748,257.90151573,0.00042409,120]
[406521965,1771906806185,387.67534246,0.00042409,120]
[406521966,1771906817374,287.62157081,0.00042409,120]
[406521967,1771906817738,159.26346351,0.00042409,120]
[406521968,1771906825351,294.04514137,0.00042409,120]
[406521969,1771906833231,192.10518182,0.00042409,120]
[406521971,1771906852537,360.56408905,0.00042409,120]
[406521972,1771906856315,500.0,0.00042409,120]
[406521973,1771906856541,500.0,0.00042409,120]
[406521974,1771906856885,436.67236123,0.00042409,120]
[406521975,1771906857450,500.0,0.00042409,120]
[406521976,1771906857717,298.67030958,0.00042409,120]
[406521978,1771906867036,414.6223802,0.00042409,120]
[406521979,1771906871508,265.72530576,0.00042409,120]
[406522004,1771906918920,155.66254334,0.00042409,120]
[406522007,1771906925643,952.19,0.00042409,120]
[406522008,1771906925877,952.19,0.00042409,120]
[406522009,1771906926127,952.19,0.00042409,120]
[406522010,1771906926365,952.19,0.00042409,120]
[406522011,1771906926608,952.19,0.00042409,120]
[406522012,1771906927018,952.19,0.00042409,120]
[406522013,1771906927322,952.19,0.00042409,120]
[406522014,1771906927516,952.19,0.00042409,120]
[406522015,1771906927773,952.19,0.00042409,120]
[406522016,1771906928023,952.19,0.00042409,120]
[406522017,1771906928291,952.19,0.00042409,120]
[406522018,1771906928553,952.19,0.00042409,120]
[406522019,1771906928820,952.19,0.00042409,120]
[406522020,1771906929069,952.19,0.00042409,120]
[406522021,1771906929324,952.19,0.00042409,120]
[406522022,1771906929560,952.19,0.00042409,120]
[406522023,1771906929800,952.19,0.00042409,120]
[406522024,1771906930055,952.19,0.00042409,120]
[406522025,1771906930302,952.19,0.00042409,120]
[406522026,1771906930538,952.19,0.00042409,120]
[406522027,1771906930785,952.19,0.00042409,120]
[406522028,1771906931029,952.19,0.00042409,120]
[406522029,1771906931628,952.19,0.00042409,120]
[406522030,1771906931888,952.31963584,0.00042409,120]
[406522035,1771906933793,500.0,0.00042409,120]
[406522036,1771906934036,500.0,0.00042409,120]
[406522037,1771906934282,500.0,0.00042409,120]
[406522038,1771906934526,500.0,0.00042409,120]
[406522039,1771906934790,500.0,0.00042409,120]
[406522040,1771906935047,500.0,0.00042409,120]
[406522041,1771906935338,500.0,0.00042409,120]
[406522042,1771906935606,500.0,0.00042409,120]
[406522043,1771906935872,500.0,0.00042409,120]
[406522048,1771906939485,500.0,0.00042409,120]
[406522049,1771906939761,500.0,0.00042409,120]
[406522050,1771906940009,500.0,0.00042409,120]
[406522051,1771906940284,500.0,0.00042409,120]
[406522052,1771906940524,500.0,0.00042409,120]
[406522053,1771906940773,500.0,0.00042409,120]
[406522054,1771906941006,500.0,0.00042409,120]
[406522055,1771906941264,500.0,0.00042409,120]
[406522056,1771906941501,500.0,0.00042409,120]
[406522057,1771906941741,500.0,0.00042409,120]
[406522058,1771906942142,533.4509149,0.00042409,120]
[406522114,1771906960239,157.72164562,0.00042409,120]
[406522132,1771907015510,287.87731222,0.00042409,120]
[406522133,1771907016060,233.60180109,0.00042409,120]
[406522134,1771907016375,233.60180109,0.00042409,120]
[406522135,1771907016701,233.60180109,0.00042409,120]
[406522137,1771907058683,500.0,0.00042408,120]
[406522138,1771907058912,500.0,0.00042408,120]
[406522139,1771907059137,587.47889385,0.00042408,120]
[406522158,1771907089353,559.01,0.00042408,120]
[406522159,1771907089600,559.01,0.00042408,120]
[406522160,1771907089833,559.01,0.00042408,120]
[406522161,1771907090074,559.01,0.00042408,120]
[406522162,1771907090306,559.01,0.00042408,120]
[406522163,1771907090536,559.01,0.00042408,120]
[406522164,1771907090763,559.01,0.00042408,120]
[406522165,1771907091005,559.01,0.00042408,120]
[406522166,1771907091248,559.01,0.00042408,120]
[406522167,1771907091507,559.01,0.00042408,120]
[406522168,1771907091729,559.01,0.00042408,120]
[406522169,1771907091982,559.01,0.00042408,120]
[406522170,1771907092404,559.01,0.00042408,120]
[406522171,1771907092803,559.01,0.00042408,120]
[406522172,1771907093066,559.01,0.00042408,120]
[406522173,1771907093644,559.01,0.00042408,120]
[406522174,1771907093923,559.01,0.00042408,120]
[406522175,1771907094172,559.01,0.00042408,120]
[406522176,1771907094463,559.01,0.00042408,120]
[406522177,1771907094712,559.01,0.00042408,120]
[406522178,1771907094987,559.01,0.00042408,120]
[406522179,1771907095224,559.01,0.00042408,120]
[406522180,1771907095462,559.01,0.00042408,120]
[406522181,1771907095699,559.09876235,0.00042408,120]
[406522183,1771907110260,250.0,0.00042408,120]
[406522184,1771907110891,250.0,0.00042408,120]
[406522185,1771907111514,250.0,0.00042408,120]
[406522186,1771907112125,250.0,0.00042408,120]
[406522187,1771907112729,250.0,0.00042408,120]
[406522188,1771907113348,250.0,0.00042408,120]
[406522189,1771907113964,250.0,0.00042408,120]
[406522190,1771907114761,250.0,0.00042408,120]
[406522194,1771907147116,-300.0,0.00011998,2]
[406522195,1771907147135,-300.0,0.00011998,2]
[406522196,1771907147156,-300.0,0.00011998,2]
[406522197,1771907147176,-229.87933562,0.00011998,2]
[406522266,1771907226166,250.0,0.00042408,120]
[406522267,1771907226777,250.0,0.00042408,120]
[406522268,1771907227399,250.0,0.00042408,120]
[406522269,1771907227997,250.0,0.00042408,120]
[406522271,1771907228605,250.0,0.00042408,120]
[406522272,1771907229235,250.0,0.00042408,120]
[406522273,1771907229838,250.0,0.00042408,120]
[406522276,1771907230454,250.0,0.00042408,120]
[406522282,1771907233226,797.79,0.00042408,120]
[406522283,1771907233463,797.79,0.00042408,120]
[406522284,1771907233732,797.79,0.00042408,120]
[406522285,1771907233981,797.79,0.00042408,120]
[406522286,1771907234222,797.79,0.00042408,120]
[406522287,1771907234465,797.79,0.00042408,120]
[406522288,1771907234700,797.79,0.00042408,120]
[406522289,1771907234926,797.79,0.00042408,120]
[406522290,1771907235154,797.79,0.00042408,120]
[406522291,1771907235378,797.79,0.00042408,120]
[406522292,1771907235641,797.79,0.00042408,120]
[406522293,1771907235835,797.79,0.00042408,120]
[406522294,1771907236072,-70.12066438,0.00011998,2]
[406522295,1771907236095,-1200.0,0.00011998,2]
[406522296,1771907236114,-300.0,0.00011998,2]
[406522297,1771907236134,-418.54366507,0.00011999,2]
[406522298,1771907236155,-57.08437824,0.00011999,2]
[406522299,1771907236186,797.79,0.00042408,120]
[406522301,1771907236411,797.79,0.00042408,120]
[406522302,1771907236647,797.79,0.00042408,120]
[406522303,1771907236881,797.79,0.00042408,120]
[406522304,1771907237109,797.79,0.00042408,120]
[406522305,1771907237339,797.79,0.00042408,120]
[406522306,1771907237564,797.79,0.00042408,120]
[406522307,1771907237789,797.79,0.00042408,120]
[406522308,1771907238016,797.79,0.00042408,120]
[406522309,1771907238345,797.79,0.00042408,120]
[406522310,1771907238593,797.79,0.00042408,120]
[406522311,1771907238823,797.90009722,0.00042408,120]
[406522356,1771907286483,426.63560769,0.00010618,2]
[406522417,1771907432412,-276.36,0.00011879,2]
[406522419,1771907432423,-4723.64,0.00011879,2]
[406522421,1771907432432,-300.0,0.00011999,2]
[406522423,1771907432441,-500.0,0.00011999,2]
[406522425,1771907432450,-500.0,0.00011999,2]
[406522427,1771907432459,-500.0,0.00011999,2]
[406522429,1771907432468,-500.0,0.00011999,2]
[406522431,1771907432477,-500.0,0.00011999,2]
[406522433,1771907432486,-500.0,0.00011999,2]
[406522435,1771907432496,-500.0,0.00011999,2]
[406522438,1771907432511,-500.0,0.00011999,2]
[406522440,1771907432519,-206.69212229,0.00011999,2]
[406522442,1771907432528,-200.83637194,0.00011999,2]
[406522444,1771907432539,-299.16362806,0.00011999,2]
[406522446,1771907432550,-500.0,0.00011999,2]
[406522448,1771907432559,-9580.31629433,0.00012,2]
[406522451,1771907432570,-1078.08916142,0.00012,2]
[406522453,1771907432581,-997.32222237,0.00012,2]
[406522526,1771907438551,-22066.06402549,0.00012,2]
[406522527,1771907438563,-13620.17391331,0.00012,2]
[406522750,1771907442869,-2148.45351167,0.00012,2]
[406522848,1771907443712,-658.83621924,0.00012,2]
[406522851,1771907443723,-1522.895,0.00012,2]
[406522856,1771907443767,-382.35591491,0.00012,2]
[406523138,1771907446525,-794.41443861,0.0001188,2]
[406523140,1771907446537,-4205.58556139,0.0001188,2]
[406523142,1771907446547,-73.27704666,0.00012,2]
[406523147,1771907446582,-41149.21720895,0.00012,2]
[406523476,1771907584249,608.8,0.00042408,120]
[406523484,1771907883655,213.03,9.491e-05,2]
[406523485,1771907883956,213.03,9.491e-05,2]
[406523486,1771907884224,213.03,9.491e-05,2]
[406523487,1771908103848,5000.0,0.00042405,59]
[406523489,1771908127264,5000.0,0.00042405,61]
[406523491,1771908351133,-300.0,0.00011996,2]
[406523492,1771908351152,-300.0,0.00011996,2]
[406523493,1771908351173,-8.59463433,0.00011996,2]
[406523505,1771908432089,-204.57487077,0.00011757,2]
[406523506,1771908449508,618.213036,0.00010997,2]
[406523507,1771908592300,5000.0,0.00042405,66]
[406523533,1771908631647,-2045.44755481,0.00011639,2]
[406523535,1771908631657,-1191.0,0.00011756,2]
[406523537,1771908631666,-586.0,0.00011757,2]
[406523539,1771908631675,-639.00424699,0.00011996,2]
[406523541,1771908631685,-4209.20608757,0.00011996,2]
[406523549,1771908637780,-500.0,0.00011995,2]
[406523550,1771908637789,-500.0,0.00011995,2]
[406523551,1771908637798,-500.0,0.00011995,2]
[406523552,1771908637807,-500.0,0.00011995,2]
[406523553,1771908637816,-500.0,0.00011995,2]
[406523554,1771908637825,-500.0,0.00011995,2]
[406523555,1771908637834,-500.0,0.00011995,2]
[406523557,1771908637844,-500.0,0.00011995,2]
[406523558,1771908637855,-500.0,0.00011995,2]
[406523559,1771908637865,-500.0,0.00011995,2]
[406523560,1771908637874,-500.0,0.00011995,2]
[406523561,1771908637882,-500.0,0.00011995,2]
[406523562,1771908637892,-310.00439841,0.00011995,2]
[406523563,1771908637902,-500.0,0.00011995,2]
[406523564,1771908637910,-174.19395978,0.00011995,2]
[406523565,1771908637919,-500.0,0.00011995,2]
[406523566,1771908637929,-500.0,0.00011995,2]
[406523567,1771908637938,-500.0,0.00011995,2]
[406523568,1771908637947,-500.0,0.00011995,2]
[406523569,1771908637956,-396.18401882,0.00011995,2]
[406523570,1771908637965,-500.0,0.00011995,2]
[406523571,1771908637974,-500.0,0.00011995,2]
[406523572,1771908637983,-500.0,0.00011995,2]
[406523573,1771908637992,-500.0,0.00011995,2]
[406523574,1771908638001,-500.0,0.00011995,2]
[406523575,1771908638010,-500.0,0.00011995,2]
[406523576,1771908638019,-500.0,0.00011995,2]
[406523577,1771908638029,-500.0,0.00011995,2]
[406523578,1771908638038,-500.0,0.00011995,2]
[406523579,1771908638046,-500.0,0.00011995,2]
[406523580,1771908638055,-500.0,0.00011995,2]
[406523581,1771908638064,-500.0,0.00011995,2]
[406523582,1771908638073,-500.0,0.00011995,2]
[406523583,1771908638082,-500.0,0.00011995,2]
[406523584,1771908638091,-500.0,0.00011995,2]
[406523585,1771908638099,-500.0,0.00011995,2]
[406523586,1771908638108,-500.0,0.00011995,2]
[406523587,1771908638117,-560.63913689,0.00011995,2]
[406523588,1771908638127,-500.0,0.00011995,2]
[406523589,1771908638136,-11126.60794648,0.00011996,2]
[406523590,1771908638148,-3233.56746409,0.00011996,2]
[406523591,1771908638218,-12590.18690458,0.00011996,2]
[406523592,1771908638228,-487.99477321,0.00011999,2]
[406523593,1771908638236,-688.0,0.00011999,2]
[406523594,1771908638245,-688.0,0.00011999,2]
[406523595,1771908638254,-688.0,0.00011999,2]
[406523596,1771908638263,-688.0,0.00011999,2]
[406523597,1771908638272,-688.0,0.00011999,2]
[406523598,1771908638281,-688.0,0.00011999,2]
[406523599,1771908638290,-688.0,0.00011999,2]
[406523600,1771908638299,-688.0,0.00011999,2]
[406523601,1771908638308,-76651.8569616,0.00012,2]
[406523947,1771908643027,-1266.46,0.00012,2]
[406524020,1771908645668,-3163.91173982,0.00012,2]
[406524021,1771908645679,-6715.30838954,0.00012,2]
[406524025,1771909030957,5000.0,0.000115,2]
[406524088,1771909144764,1854.26996241,0.000115,2]
[406524089,1771909160572,1461.7913939,0.000115,2]
[406524090,1771909199198,281.0946984,8.044e-05,2]
[406524109,1771909203973,154.74,9.5e-05,2]
[406524110,1771909204407,154.74,9.5e-05,2]
[406524111,1771909204897,154.74,9.5e-05,2]
[406524112,1771909205386,154.74,9.5e-05,2]
[406524113,1771909205916,154.74,9.5e-05,2]
[406524114,1771909206333,154.74,9.5e-05,2]
[406524115,1771909206839,154.74,9.5e-05,2]
[406524116,1771909207338,154.74,9.5e-05,2]
[406524117,1771909207854,154.74,9.5e-05,2]
[406524118,1771909208281,154.74,9.5e-05,2]
[406524119,1771909208801,154.74,9.5e-05,2]
[406524120,1771909209299,154.74,9.5e-05,2]
[406524121,1771909209797,154.74,9.5e-05,2]